[Event "Late-Titled-Tuesday-Blitz-September-12-2023"]
[Site "Chess.com"]
[Date "2023.09.12"]
[Round "3"]
[White "MichalL9"]
[Black "zajka-molotok"]
[Result "0-1"]
[WhiteElo "2222"]
[BlackElo "2516"]
[TimeControl "180+1"]
[EndTime "14:26:23 PDT"]
[Termination "zajka-molotok won by resignation"]

1. Nf3 {[%clk 0:03:00.9]} 1... d5 {[%clk 0:02:51.1]} 2. c4 {[%clk 0:02:59.5]}
2... e6 {[%clk 0:02:50.1]} 3. cxd5 {[%clk 0:02:58.5]} 3... exd5 {[%clk
0:02:49.9]} 4. b3 {[%clk 0:02:58.5]} 4... Nf6 {[%clk 0:02:43.8]} 5. Bb2 {[%clk
0:02:58.5]} 5... Bd6 {[%clk 0:02:37.7]} 6. g3 {[%clk 0:02:57.3]} 6... c6 {[%clk
0:02:36.7]} 7. Bg2 {[%clk 0:02:57.6]} 7... Bg4 {[%clk 0:02:35.4]} 8. O-O {[%clk
0:02:57.5]} 8... O-O {[%clk 0:02:34.7]} 9. d3 {[%clk 0:02:56.1]} 9... Nbd7
{[%clk 0:02:29.9]} 10. Nbd2 {[%clk 0:02:56.2]} 10... Re8 {[%clk 0:02:29.4]} 11.
Rc1 {[%clk 0:02:56.2]} 11... h6 {[%clk 0:02:26.9]} 12. Rc2 {[%clk 0:02:55.9]}
12... Qe7 {[%clk 0:02:22.2]} 13. Re1 {[%clk 0:02:55.7]} 13... Ne5 {[%clk
0:02:16.4]} 14. Qa1 {[%clk 0:02:48]} 14... a5 {[%clk 0:02:13.2]} 15. a3 {[%clk
0:02:45.5]} 15... Nfd7 {[%clk 0:02:09.5]} 16. h3 {[%clk 0:02:36.8]} 16... Bxf3
{[%clk 0:02:02.8]} 17. Nxf3 {[%clk 0:02:37.7]} 17... Nxf3+ {[%clk 0:02:02.4]}
18. Bxf3 {[%clk 0:02:37.2]} 18... Be5 {[%clk 0:02:02.3]} 19. Kg2 {[%clk
0:02:31.2]} 19... Bxb2 {[%clk 0:01:58.8]} 20. Qxb2 {[%clk 0:02:32.1]} 20... Ne5
{[%clk 0:01:58.6]} 21. Rec1 {[%clk 0:02:09.1]} 21... Qe6 {[%clk 0:01:40.5]} 22.
b4 {[%clk 0:01:58.3]} 22... Nxf3 {[%clk 0:01:38]} 23. exf3 {[%clk 0:01:57.5]}
23... axb4 {[%clk 0:01:23.4]} 24. axb4 {[%clk 0:01:58.4]} 24... Qg6 {[%clk
0:00:56.6]} 25. b5 {[%clk 0:01:55.7]} 25... Qxd3 {[%clk 0:00:47]} 26. bxc6
{[%clk 0:01:55]} 26... bxc6 {[%clk 0:00:47.6]} 27. Rxc6 {[%clk 0:01:47.8]} 27...
d4 {[%clk 0:00:42.4]} 28. Rc7 {[%clk 0:01:16.3]} 28... Ra3 {[%clk 0:00:37.8]}
29. Qb7 {[%clk 0:00:57.2]} 29... Ra2 {[%clk 0:00:18.2]} 30. Rxf7 {[%clk
0:00:40.5]} 30... Rxf2+ {[%clk 0:00:17.2]} 31. Kh1 {[%clk 0:00:28.7]} 31... Rf1+
{[%clk 0:00:16.2]} 0-1

[Event "Late-Titled-Tuesday-Blitz-September-12-2023"]
[Site "Chess.com"]
[Date "2023.09.12"]
[Round "3"]
[White "Firouzja2003"]
[Black "KaydenTroffChess"]
[Result "1-0"]
[WhiteElo "3082"]
[BlackElo "2742"]
[TimeControl "180+1"]
[EndTime "14:26:26 PDT"]
[Termination "Firouzja2003 won by resignation"]

1. d4 {[%clk 0:02:58]} 1... Nf6 {[%clk 0:02:59.7]} 2. Bg5 {[%clk 0:02:58.6]}
2... d5 {[%clk 0:02:56.2]} 3. e3 {[%clk 0:02:58.6]} 3... Nbd7 {[%clk 0:02:56.2]}
4. c4 {[%clk 0:02:58.6]} 4... c6 {[%clk 0:02:54.1]} 5. Nc3 {[%clk 0:02:58.8]}
5... h6 {[%clk 0:02:44.4]} 6. Bh4 {[%clk 0:02:58.8]} 6... e6 {[%clk 0:02:39.9]}
7. cxd5 {[%clk 0:02:58.6]} 7... exd5 {[%clk 0:02:39.6]} 8. Bd3 {[%clk
0:02:58.7]} 8... Be7 {[%clk 0:02:37.3]} 9. Nge2 {[%clk 0:02:59.1]} 9... O-O
{[%clk 0:02:36.6]} 10. O-O {[%clk 0:02:59.4]} 10... Re8 {[%clk 0:02:35.8]} 11.
f3 {[%clk 0:02:54.7]} 11... Nf8 {[%clk 0:02:34.2]} 12. Bf2 {[%clk 0:02:54.5]}
12... c5 {[%clk 0:02:26.9]} 13. Rc1 {[%clk 0:02:31.4]} 13... b6 {[%clk
0:02:21.6]} 14. Kh1 {[%clk 0:02:15.7]} 14... a6 {[%clk 0:02:09.9]} 15. dxc5
{[%clk 0:01:50.1]} 15... bxc5 {[%clk 0:02:08.3]} 16. e4 {[%clk 0:01:50.3]} 16...
d4 {[%clk 0:01:57]} 17. Na4 {[%clk 0:01:50.2]} 17... Ne6 {[%clk 0:01:56.7]} 18.
Bc4 {[%clk 0:01:49.5]} 18... Nd7 {[%clk 0:01:31.6]} 19. b4 {[%clk 0:01:43.9]}
19... cxb4 {[%clk 0:01:24.2]} 20. Bxe6 {[%clk 0:01:43.6]} 20... fxe6 {[%clk
0:01:24.2]} 21. Nxd4 {[%clk 0:01:44.4]} 21... Ne5 {[%clk 0:01:08.8]} 22. Bg3
{[%clk 0:01:36.9]} 22... Bf6 {[%clk 0:01:07]} 23. Bxe5 {[%clk 0:01:36.8]} 23...
Bxe5 {[%clk 0:01:06.8]} 24. Nc6 {[%clk 0:01:37.5]} 24... Qc7 {[%clk 0:00:16.5]}
25. Nxb4 {[%clk 0:01:28.9]} 25... Qf7 {[%clk 0:00:13.1]} 26. Nc6 {[%clk
0:01:25.8]} 26... Bc7 {[%clk 0:00:13.3]} 27. Nc5 {[%clk 0:01:23.9]} 27... a5
{[%clk 0:00:11.4]} 28. e5 {[%clk 0:01:23.3]} 28... Ba6 {[%clk 0:00:09.4]} 29.
Nxa6 {[%clk 0:01:23.6]} 29... Rxa6 {[%clk 0:00:10.3]} 30. f4 {[%clk 0:01:24.2]}
30... Rb6 {[%clk 0:00:06.3]} 31. Nxa5 {[%clk 0:01:21.8]} 31... Ra6 {[%clk
0:00:05.4]} 32. Nc6 {[%clk 0:01:16.7]} 32... Rxa2 {[%clk 0:00:05.6]} 33. Qb3
{[%clk 0:01:17.1]} 33... Re2 {[%clk 0:00:05.2]} 34. Nd4 {[%clk 0:01:15.5]} 34...
Rd2 {[%clk 0:00:04.9]} 35. Nb5 {[%clk 0:01:15.5]} 35... Bb6 {[%clk 0:00:04.3]}
36. Nd6 {[%clk 0:01:13.8]} 36... Qg6 {[%clk 0:00:04.6]} 37. Qg3 {[%clk 0:01:04]}
37... Qxg3 {[%clk 0:00:04.5]} 38. hxg3 {[%clk 0:01:04.9]} 38... Rf8 {[%clk
0:00:05.1]} 39. Rc6 {[%clk 0:01:03.9]} 39... Bf2 {[%clk 0:00:04.7]} 40. Ne4
{[%clk 0:01:03.4]} 40... Re2 {[%clk 0:00:03.2]} 41. Nxf2 {[%clk 0:01:03.9]}
41... g5 {[%clk 0:00:03.4]} 42. Ng4 {[%clk 0:01:04.3]} 42... gxf4 {[%clk
0:00:03.6]} 43. gxf4 {[%clk 0:01:04.8]} 43... Kg7 {[%clk 0:00:04.4]} 44. Rxe6
{[%clk 0:01:04.9]} 44... h5 {[%clk 0:00:04.8]} 45. Nf6 {[%clk 0:01:05.1]} 45...
Kg6 {[%clk 0:00:05.7]} 46. f5+ {[%clk 0:01:05.4]} 46... Kg5 {[%clk 0:00:05.9]}
47. Nh7+ {[%clk 0:01:06]} 47... Kh4 {[%clk 0:00:06]} 48. Nxf8 {[%clk 0:01:06.4]}
48... Kg3 {[%clk 0:00:05.4]} 49. Rg6+ {[%clk 0:01:06.3]} 1-0

[Event "Late-Titled-Tuesday-Blitz-September-12-2023"]
[Site "Chess.com"]
[Date "2023.09.12"]
[Round "3"]
[White "Levanzovsky"]
[Black "mbojan"]
[Result "0-1"]
[WhiteElo "2475"]
[BlackElo "2778"]
[TimeControl "180+1"]
[EndTime "14:26:26 PDT"]
[Termination "mbojan won on time"]

1. e4 {[%clk 0:03:00]} 1... c5 {[%clk 0:02:59.4]} 2. Nf3 {[%clk 0:02:59.5]} 2...
e6 {[%clk 0:02:56.8]} 3. d4 {[%clk 0:02:59.9]} 3... cxd4 {[%clk 0:02:56.9]} 4.
Nxd4 {[%clk 0:03:00.8]} 4... a6 {[%clk 0:02:57.6]} 5. Nc3 {[%clk 0:03:01]} 5...
b5 {[%clk 0:02:57.2]} 6. Bd3 {[%clk 0:03:01.2]} 6... Bb7 {[%clk 0:02:57.8]} 7.
O-O {[%clk 0:03:01.1]} 7... Nc6 {[%clk 0:02:58.4]} 8. Nxc6 {[%clk 0:03:00.9]}
8... Bxc6 {[%clk 0:02:59.3]} 9. Re1 {[%clk 0:03:01.1]} 9... Ne7 {[%clk
0:02:59.6]} 10. a4 {[%clk 0:02:56.7]} 10... b4 {[%clk 0:02:53.7]} 11. Na2 {[%clk
0:02:56.7]} 11... Ng6 {[%clk 0:02:51.4]} 12. Bd2 {[%clk 0:02:57]} 12... Qb8
{[%clk 0:02:48.3]} 13. c3 {[%clk 0:02:47.1]} 13... bxc3 {[%clk 0:02:44.2]} 14.
Bxc3 {[%clk 0:02:48]} 14... Bd6 {[%clk 0:02:41.8]} 15. g3 {[%clk 0:02:47.2]}
15... O-O {[%clk 0:02:41.7]} 16. Nc1 {[%clk 0:02:19.7]} 16... Be5 {[%clk
0:02:38.5]} 17. Qd2 {[%clk 0:02:01.5]} 17... Rc8 {[%clk 0:02:34.6]} 18. Ne2
{[%clk 0:01:57.6]} 18... Bxc3 {[%clk 0:02:31.2]} 19. Nxc3 {[%clk 0:01:58.5]}
19... Qb4 {[%clk 0:02:22.7]} 20. a5 {[%clk 0:01:23]} 20... Ne5 {[%clk
0:02:21.6]} 21. Be2 {[%clk 0:01:22.2]} 21... Bb5 {[%clk 0:02:21.8]} 22. Red1
{[%clk 0:01:00]} 22... Rxc3 {[%clk 0:02:03.2]} 23. bxc3 {[%clk 0:00:54.6]} 23...
Qxe4 {[%clk 0:02:02.9]} 24. Re1 {[%clk 0:00:12]} 24... Bc6 {[%clk 0:01:37.2]}
25. f3 {[%clk 0:00:11.7]} 25... Nxf3+ {[%clk 0:01:36.8]} 26. Bxf3 {[%clk
0:00:12.6]} 26... Qxf3 {[%clk 0:01:37.5]} 27. Rad1 {[%clk 0:00:03.6]} 27... Qh1+
{[%clk 0:01:36.3]} 28. Kf2 {[%clk 0:00:04.5]} 28... Qxh2+ {[%clk 0:01:37.2]} 29.
Ke3 {[%clk 0:00:04.6]} 29... Qxg3+ {[%clk 0:01:37.4]} 30. Kd4 {[%clk 0:00:04.5]}
30... Rc8 {[%clk 0:01:23.7]} 31. Rg1 {[%clk 0:00:04.4]} 31... Qh4+ {[%clk
0:01:24]} 32. Ke3 {[%clk 0:00:04]} 32... Bb5 {[%clk 0:01:07.3]} 33. Qd4 {[%clk
0:00:03.6]} 33... Qh3+ {[%clk 0:00:56.4]} 34. Kf2 {[%clk 0:00:03.4]} 34... Qf5+
{[%clk 0:00:54]} 35. Ke3 {[%clk 0:00:02.9]} 35... g6 {[%clk 0:00:51.7]} 0-1

[Event "Late-Titled-Tuesday-Blitz-September-12-2023"]
[Site "Chess.com"]
[Date "2023.09.12"]
[Round "3"]
[White "AlexanderL"]
[Black "cthulhuuu"]
[Result "1-0"]
[WhiteElo "2851"]
[BlackElo "2487"]
[TimeControl "180+1"]
[EndTime "14:26:28 PDT"]
[Termination "AlexanderL won by checkmate"]

1. Nf3 {[%clk 0:03:00.9]} 1... Nf6 {[%clk 0:03:00.5]} 2. b3 {[%clk 0:03:01.8]}
2... g6 {[%clk 0:03:00.7]} 3. Bb2 {[%clk 0:03:02.4]} 3... Bg7 {[%clk 0:03:01.6]}
4. g3 {[%clk 0:03:02.7]} 4... O-O {[%clk 0:03:02.3]} 5. Bg2 {[%clk 0:03:03.4]}
5... d6 {[%clk 0:03:03]} 6. d4 {[%clk 0:03:02.8]} 6... Nbd7 {[%clk 0:03:03.2]}
7. O-O {[%clk 0:03:02.3]} 7... c6 {[%clk 0:03:00.4]} 8. c4 {[%clk 0:03:00.1]}
8... Re8 {[%clk 0:02:59.9]} 9. Nc3 {[%clk 0:03:00.1]} 9... e5 {[%clk 0:03:00]}
10. dxe5 {[%clk 0:02:59.2]} 10... dxe5 {[%clk 0:03:00.8]} 11. Nd2 {[%clk
0:02:58.3]} 11... e4 {[%clk 0:02:49.8]} 12. Qc2 {[%clk 0:02:56.3]} 12... e3
{[%clk 0:02:38.3]} 13. Nde4 {[%clk 0:02:55.6]} 13... Nxe4 {[%clk 0:02:33.2]} 14.
Nxe4 {[%clk 0:02:55]} 14... Bxb2 {[%clk 0:02:20.9]} 15. Qxb2 {[%clk 0:02:55.9]}
15... Qe7 {[%clk 0:02:19.9]} 16. f4 {[%clk 0:02:47.6]} 16... f5 {[%clk
0:02:16.6]} 17. Ng5 {[%clk 0:02:47.7]} 17... Nc5 {[%clk 0:02:00.6]} 18. Rad1
{[%clk 0:02:44.8]} 18... h6 {[%clk 0:01:55.8]} 19. Nf3 {[%clk 0:02:41.7]} 19...
Be6 {[%clk 0:01:42.9]} 20. Ne5 {[%clk 0:02:38.3]} 20... Bf7 {[%clk 0:01:43.1]}
21. Qd4 {[%clk 0:02:36.4]} 21... Rad8 {[%clk 0:01:38.8]} 22. Qxe3 {[%clk
0:02:35.7]} 22... Rxd1 {[%clk 0:01:38.7]} 23. Rxd1 {[%clk 0:02:35]} 23... Nd7
{[%clk 0:01:37.8]} 24. Qxa7 {[%clk 0:02:10.3]} 24... Nxe5 {[%clk 0:01:31.6]} 25.
fxe5 {[%clk 0:02:11.2]} 25... Qxe5 {[%clk 0:01:32.2]} 26. Bf3 {[%clk 0:02:11.8]}
26... g5 {[%clk 0:01:25.8]} 27. Qd4 {[%clk 0:02:10]} 27... g4 {[%clk 0:01:21.8]}
28. Qxe5 {[%clk 0:02:08.8]} 28... Rxe5 {[%clk 0:01:21.8]} 29. Bg2 {[%clk
0:02:08.9]} 29... Rxe2 {[%clk 0:01:17.1]} 30. Rd8+ {[%clk 0:02:08.9]} 30... Kg7
{[%clk 0:01:13.3]} 31. Rd7 {[%clk 0:02:08.9]} 31... Rxa2 {[%clk 0:01:08.3]} 32.
Rxb7 {[%clk 0:02:08.9]} 32... Ra1+ {[%clk 0:01:02.5]} 33. Bf1 {[%clk 0:02:08.9]}
33... Kf6 {[%clk 0:00:42.2]} 34. Rb6 {[%clk 0:02:07.9]} 34... Be8 {[%clk
0:00:40.2]} 35. Kf2 {[%clk 0:02:07.9]} 35... Ke5 {[%clk 0:00:39.1]} 36. Be2
{[%clk 0:02:05.4]} 36... Kd4 {[%clk 0:00:37.6]} 37. Rb8 {[%clk 0:02:01.9]} 37...
Bf7 {[%clk 0:00:30]} 38. Rf8 {[%clk 0:02:01.8]} 38... Be6 {[%clk 0:00:29.3]} 39.
Rf6 {[%clk 0:02:01.8]} 39... Ke5 {[%clk 0:00:29.9]} 40. Rxh6 {[%clk 0:02:01.1]}
40... Rb1 {[%clk 0:00:26.6]} 41. Rh5 {[%clk 0:01:51.7]} 41... Kd4 {[%clk
0:00:21.3]} 42. h3 {[%clk 0:01:47.4]} 42... gxh3 {[%clk 0:00:19.1]} 43. Rxh3
{[%clk 0:01:48.3]} 43... Rxb3 {[%clk 0:00:18.9]} 44. Rh6 {[%clk 0:01:48.1]}
44... Bxc4 {[%clk 0:00:17.3]} 45. Rh4+ {[%clk 0:01:47.9]} 45... Ke5 {[%clk
0:00:12.1]} 46. Rxc4 {[%clk 0:01:47.4]} 46... Rb6 {[%clk 0:00:10.2]} 47. Rc5+
{[%clk 0:01:44.8]} 47... Kf6 {[%clk 0:00:08.2]} 48. Bd3 {[%clk 0:01:42.5]} 48...
Kg5 {[%clk 0:00:03.5]} 49. Rxf5+ {[%clk 0:01:39.5]} 49... Kg4 {[%clk 0:00:04.4]}
50. Rc5 {[%clk 0:01:35.2]} 50... Rb2+ {[%clk 0:00:04.1]} 51. Be2+ {[%clk
0:01:33.6]} 51... Kh3 {[%clk 0:00:04.7]} 52. Rh5# {[%clk 0:01:33]} 1-0

[Event "Late-Titled-Tuesday-Blitz-September-12-2023"]
[Site "Chess.com"]
[Date "2023.09.12"]
[Round "3"]
[White "Mackster23"]
[Black "sergiochess83"]
[Result "0-1"]
[WhiteElo "2543"]
[BlackElo "2923"]
[TimeControl "180+1"]
[EndTime "14:26:29 PDT"]
[Termination "sergiochess83 won by resignation"]

1. e4 {[%clk 0:03:00.9]} 1... c5 {[%clk 0:02:55.5]} 2. Nf3 {[%clk 0:03:00.9]}
2... Nc6 {[%clk 0:02:55.8]} 3. d4 {[%clk 0:03:00.7]} 3... cxd4 {[%clk
0:02:55.7]} 4. Nxd4 {[%clk 0:03:01.6]} 4... Nf6 {[%clk 0:02:52.6]} 5. Nc3 {[%clk
0:03:01.6]} 5... e6 {[%clk 0:02:53.3]} 6. Ndb5 {[%clk 0:03:00.4]} 6... Bc5
{[%clk 0:02:50.9]} 7. Bf4 {[%clk 0:02:57.4]} 7... O-O {[%clk 0:02:45.6]} 8. Bc7
{[%clk 0:02:57]} 8... Qe7 {[%clk 0:02:44.9]} 9. Bd6 {[%clk 0:02:57.4]} 9... Bxd6
{[%clk 0:02:44.8]} 10. Qxd6 {[%clk 0:02:58.3]} 10... Qd8 {[%clk 0:02:45]} 11.
Be2 {[%clk 0:02:44.9]} 11... Qb6 {[%clk 0:02:29.3]} 12. Qc7 {[%clk 0:01:55.5]}
12... Qc5 {[%clk 0:02:05.1]} 13. Qd6 {[%clk 0:01:55.1]} 13... b6 {[%clk
0:01:46]} 14. Qxc5 {[%clk 0:01:37.6]} 14... bxc5 {[%clk 0:01:46]} 15. Nd6 {[%clk
0:01:38.4]} 15... Rb8 {[%clk 0:01:44.4]} 16. O-O-O {[%clk 0:01:38.3]} 16... Nd4
{[%clk 0:01:43.4]} 17. Bc4 {[%clk 0:01:08.2]} 17... Ng4 {[%clk 0:01:40.5]} 18.
Rd2 {[%clk 0:01:04.9]} 18... Rb6 {[%clk 0:01:39.4]} 19. Ncb5 {[%clk 0:00:54.2]}
19... Ba6 {[%clk 0:01:30.2]} 20. Nxd4 {[%clk 0:00:36.6]} 20... Rxd6 {[%clk
0:01:30.2]} 21. Bxa6 {[%clk 0:00:34.2]} 21... Rxa6 {[%clk 0:01:27.2]} 22. Nb3
{[%clk 0:00:27.9]} 22... c4 {[%clk 0:01:20.8]} 23. Nc5 {[%clk 0:00:28.1]} 23...
Rxa2 {[%clk 0:01:18.7]} 24. Kb1 {[%clk 0:00:28]} 24... Ra5 {[%clk 0:01:14]} 25.
Nxd7 {[%clk 0:00:27.5]} 25... Rc8 {[%clk 0:01:09.1]} 26. f3 {[%clk 0:00:27.5]}
26... Ne3 {[%clk 0:01:02.4]} 27. Re1 {[%clk 0:00:22.5]} 27... c3 {[%clk
0:01:02.7]} 28. bxc3 {[%clk 0:00:19.8]} 28... Nc4 {[%clk 0:01:00.6]} 29. Rd4
{[%clk 0:00:16.8]} 29... h5 {[%clk 0:00:52.2]} 30. Red1 {[%clk 0:00:09.1]} 30...
Rc7 {[%clk 0:00:51.3]} 31. Rxc4 {[%clk 0:00:04.1]} 31... Rxc4 {[%clk 0:00:51.6]}
32. Rd4 {[%clk 0:00:04.8]} 32... Rxc3 {[%clk 0:00:49.7]} 33. Kb2 {[%clk
0:00:04.8]} 33... Re3 {[%clk 0:00:45.7]} 34. Rd2 {[%clk 0:00:04]} 34... Rb5+
{[%clk 0:00:45.4]} 35. Ka2 {[%clk 0:00:03.6]} 35... Rc3 {[%clk 0:00:44.6]} 36.
f4 {[%clk 0:00:02.6]} 36... f6 {[%clk 0:00:43.6]} 0-1

[Event "Late-Titled-Tuesday-Blitz-September-12-2023"]
[Site "Chess.com"]
[Date "2023.09.12"]
[Round "3"]
[White "MagnusCarlsen"]
[Black "Kosak12"]
[Result "1-0"]
[WhiteElo "3218"]
[BlackElo "2793"]
[TimeControl "180+1"]
[EndTime "14:26:30 PDT"]
[Termination "MagnusCarlsen won by resignation"]

1. b3 {[%clk 0:03:00.9]} 1... Nf6 {[%clk 0:02:50.6]} 2. Bb2 {[%clk 0:02:44.8]}
2... g6 {[%clk 0:02:50.4]} 3. g3 {[%clk 0:02:41.2]} 3... Bg7 {[%clk 0:02:49.9]}
4. Bg2 {[%clk 0:02:42]} 4... O-O {[%clk 0:02:50]} 5. Nf3 {[%clk 0:02:41.6]} 5...
c5 {[%clk 0:02:43.4]} 6. c4 {[%clk 0:02:41.1]} 6... Nc6 {[%clk 0:02:34.8]} 7.
O-O {[%clk 0:02:40.7]} 7... d6 {[%clk 0:02:29.1]} 8. d4 {[%clk 0:02:40.1]} 8...
Ne4 {[%clk 0:02:27.3]} 9. Nbd2 {[%clk 0:02:21.3]} 9... Bf5 {[%clk 0:02:07.6]}
10. Nh4 {[%clk 0:02:17.8]} 10... Nxd2 {[%clk 0:01:58.9]} 11. Qxd2 {[%clk
0:02:11.3]} 11... Nxd4 {[%clk 0:01:52.7]} 12. Nxf5 {[%clk 0:02:03.1]} 12... Nxf5
{[%clk 0:01:50.2]} 13. Bxg7 {[%clk 0:02:03.8]} 13... Kxg7 {[%clk 0:01:50.6]} 14.
Bxb7 {[%clk 0:01:59.8]} 14... Rb8 {[%clk 0:01:51]} 15. Bg2 {[%clk 0:02:00.4]}
15... a5 {[%clk 0:01:49]} 16. Rfd1 {[%clk 0:01:56]} 16... Nd4 {[%clk 0:01:43.3]}
17. e3 {[%clk 0:01:54.7]} 17... Ne6 {[%clk 0:01:43.6]} 18. h4 {[%clk 0:01:54.5]}
18... Qd7 {[%clk 0:01:40.5]} 19. Qxa5 {[%clk 0:01:53.8]} 19... Rb4 {[%clk
0:01:36.7]} 20. Qa3 {[%clk 0:01:52.5]} 20... Rfb8 {[%clk 0:01:33.5]} 21. Qb2+
{[%clk 0:01:52.8]} 21... Kg8 {[%clk 0:01:33.2]} 22. Qc3 {[%clk 0:01:52.7]} 22...
Qa7 {[%clk 0:01:30.9]} 23. h5 {[%clk 0:01:50.7]} 23... gxh5 {[%clk 0:01:13.5]}
24. Rd5 {[%clk 0:01:48.7]} 24... Ng7 {[%clk 0:01:06.3]} 25. Bf3 {[%clk
0:01:48.5]} 25... R4b6 {[%clk 0:01:00.5]} 26. Kg2 {[%clk 0:01:45]} 26... Ra6
{[%clk 0:00:59.2]} 27. a4 {[%clk 0:00:54.7]} 27... Rab6 {[%clk 0:00:54.7]} 28.
Ra3 {[%clk 0:00:52.2]} 28... e6 {[%clk 0:00:48.4]} 29. Rg5 {[%clk 0:00:51.9]}
29... e5 {[%clk 0:00:48.6]} 30. a5 {[%clk 0:00:49]} 30... Rb4 {[%clk 0:00:46.2]}
31. Qd3 {[%clk 0:00:43.9]} 31... h6 {[%clk 0:00:27.3]} 32. Rxg7+ {[%clk
0:00:43.6]} 32... Kxg7 {[%clk 0:00:28.2]} 33. Qxd6 {[%clk 0:00:43.8]} 33... Rxb3
{[%clk 0:00:28.6]} 34. Rxb3 {[%clk 0:00:43.8]} 34... Rxb3 {[%clk 0:00:28.9]} 35.
Qxe5+ {[%clk 0:00:44.4]} 35... f6 {[%clk 0:00:28.5]} 36. Qxh5 {[%clk 0:00:43.6]}
36... Qxa5 {[%clk 0:00:28]} 37. Qg4+ {[%clk 0:00:44.1]} 37... Kf8 {[%clk
0:00:27.5]} 38. Bd5 {[%clk 0:00:43.4]} 38... Qb6 {[%clk 0:00:17]} 39. Qd7 {[%clk
0:00:42.4]} 1-0

[Event "Late-Titled-Tuesday-Blitz-September-12-2023"]
[Site "Chess.com"]
[Date "2023.09.12"]
[Round "3"]
[White "CixPer1968"]
[Black "simplerXiao"]
[Result "0-1"]
[WhiteElo "2209"]
[BlackElo "2515"]
[TimeControl "180+1"]
[EndTime "14:26:36 PDT"]
[Termination "simplerXiao won by checkmate"]

1. d4 {[%clk 0:03:00.9]} 1... d5 {[%clk 0:02:56.1]} 2. c4 {[%clk 0:03:00]} 2...
c6 {[%clk 0:02:56.2]} 3. Nf3 {[%clk 0:02:59]} 3... Nf6 {[%clk 0:02:55.6]} 4. Nc3
{[%clk 0:02:57.7]} 4... e6 {[%clk 0:02:55.2]} 5. e3 {[%clk 0:02:56.5]} 5... Nbd7
{[%clk 0:02:55.3]} 6. Qc2 {[%clk 0:02:55.7]} 6... Bd6 {[%clk 0:02:54.6]} 7. Bd3
{[%clk 0:02:55.1]} 7... O-O {[%clk 0:02:55.2]} 8. e4 {[%clk 0:02:55]} 8... dxe4
{[%clk 0:02:54.5]} 9. Nxe4 {[%clk 0:02:55.9]} 9... Nxe4 {[%clk 0:02:54.9]} 10.
Bxe4 {[%clk 0:02:56.8]} 10... Nf6 {[%clk 0:02:55.1]} 11. Bd3 {[%clk 0:02:57.4]}
11... h6 {[%clk 0:02:53.6]} 12. O-O {[%clk 0:02:57]} 12... c5 {[%clk 0:02:52.9]}
13. dxc5 {[%clk 0:02:54.1]} 13... Bxc5 {[%clk 0:02:52.2]} 14. Rd1 {[%clk
0:02:54.7]} 14... Qc7 {[%clk 0:02:50.9]} 15. a3 {[%clk 0:02:53.3]} 15... a5
{[%clk 0:02:43]} 16. b3 {[%clk 0:02:35.9]} 16... e5 {[%clk 0:02:35.5]} 17. Nd2
{[%clk 0:02:14.8]} 17... Bg4 {[%clk 0:02:30.4]} 18. Re1 {[%clk 0:02:08.8]} 18...
Rad8 {[%clk 0:02:23.5]} 19. Bb2 {[%clk 0:02:07.5]} 19... Rfe8 {[%clk 0:02:17.6]}
20. Ne4 {[%clk 0:02:06.8]} 20... Nxe4 {[%clk 0:01:59.1]} 21. Bxe4 {[%clk
0:02:07.7]} 21... Be6 {[%clk 0:01:16]} 22. Bxe5 {[%clk 0:01:49.1]} 22... Qb6
{[%clk 0:01:15.6]} 23. Bb2 {[%clk 0:01:35.7]} 23... Rf8 {[%clk 0:01:09.1]} 24.
Rad1 {[%clk 0:01:30.1]} 24... Rde8 {[%clk 0:01:08.2]} 25. Qc3 {[%clk 0:01:23.7]}
25... Bxf2+ {[%clk 0:01:01.9]} 26. Kh1 {[%clk 0:01:21.1]} 26... f6 {[%clk
0:01:02.1]} 27. Rf1 {[%clk 0:01:05.6]} 27... Bc5 {[%clk 0:01:00.5]} 28. Bb1
{[%clk 0:00:59.1]} 28... Rd8 {[%clk 0:00:47.7]} 29. Qc2 {[%clk 0:00:57.2]} 29...
f5 {[%clk 0:00:44.2]} 30. Rfe1 {[%clk 0:00:56.7]} 30... Bc8 {[%clk 0:00:40.1]}
31. Qc3 {[%clk 0:00:49.8]} 31... Qg6 {[%clk 0:00:27.9]} 32. Rf1 {[%clk
0:00:38.7]} 32... b6 {[%clk 0:00:19.1]} 33. b4 {[%clk 0:00:36.9]} 33... axb4
{[%clk 0:00:17.1]} 34. axb4 {[%clk 0:00:37.8]} 34... Bd6 {[%clk 0:00:17.2]} 35.
c5 {[%clk 0:00:36.7]} 35... bxc5 {[%clk 0:00:17.1]} 36. bxc5 {[%clk 0:00:37.6]}
36... Bc7 {[%clk 0:00:17.6]} 37. Ba2+ {[%clk 0:00:30]} 37... Kh8 {[%clk
0:00:16.9]} 38. Bb1 {[%clk 0:00:30.3]} 38... Bb7 {[%clk 0:00:15.8]} 39. Rxd8
{[%clk 0:00:24.6]} 39... Qxg2# {[%clk 0:00:14.5]} 0-1

[Event "Late-Titled-Tuesday-Blitz-September-12-2023"]
[Site "Chess.com"]
[Date "2023.09.12"]
[Round "3"]
[White "santosalberto1987"]
[Black "Mbneu"]
[Result "1-0"]
[WhiteElo "2534"]
[BlackElo "2295"]
[TimeControl "180+1"]
[EndTime "14:26:37 PDT"]
[Termination "santosalberto1987 won by resignation"]

1. e4 {[%clk 0:03:00.9]} 1... c5 {[%clk 0:02:58.2]} 2. Nf3 {[%clk 0:03:00.7]}
2... d6 {[%clk 0:02:52.5]} 3. Bb5+ {[%clk 0:03:00.2]} 3... Bd7 {[%clk
0:02:51.8]} 4. Bxd7+ {[%clk 0:03:00]} 4... Nxd7 {[%clk 0:02:52]} 5. c4 {[%clk
0:02:59.9]} 5... g6 {[%clk 0:02:48.4]} 6. d4 {[%clk 0:02:59.6]} 6... Bg7 {[%clk
0:02:48]} 7. Nc3 {[%clk 0:02:59.5]} 7... Ngf6 {[%clk 0:02:46]} 8. O-O {[%clk
0:02:49.1]} 8... cxd4 {[%clk 0:02:44.3]} 9. Nxd4 {[%clk 0:02:48.9]} 9... O-O
{[%clk 0:02:43.6]} 10. b3 {[%clk 0:02:40.2]} 10... a6 {[%clk 0:02:42.7]} 11. Be3
{[%clk 0:02:36.8]} 11... Nc5 {[%clk 0:02:38.9]} 12. f3 {[%clk 0:02:36.2]} 12...
Ne8 {[%clk 0:02:34.1]} 13. Rc1 {[%clk 0:02:33.1]} 13... Nc7 {[%clk 0:02:32.8]}
14. Qd2 {[%clk 0:02:30.1]} 14... N7e6 {[%clk 0:02:22.4]} 15. Nd5 {[%clk
0:02:26.6]} 15... Rb8 {[%clk 0:01:54.3]} 16. b4 {[%clk 0:02:10.8]} 16... Nd7
{[%clk 0:01:50.3]} 17. Nxe6 {[%clk 0:01:59.4]} 17... fxe6 {[%clk 0:01:49.9]} 18.
Nf4 {[%clk 0:02:00]} 18... Rf6 {[%clk 0:01:43.5]} 19. Rfd1 {[%clk 0:01:50.7]}
19... Ne5 {[%clk 0:01:27.4]} 20. c5 {[%clk 0:01:46.8]} 20... Bh6 {[%clk
0:01:22.5]} 21. Nd3 {[%clk 0:01:28.3]} 21... Bxe3+ {[%clk 0:01:17.9]} 22. Qxe3
{[%clk 0:01:29.2]} 22... Nxd3 {[%clk 0:01:08.8]} 23. Rxd3 {[%clk 0:01:29]} 23...
Qf8 {[%clk 0:01:04.2]} 24. cxd6 {[%clk 0:01:19.3]} 24... exd6 {[%clk 0:01:05.1]}
25. Qb6 {[%clk 0:01:18.5]} 25... d5 {[%clk 0:00:57.3]} 26. e5 {[%clk 0:01:12.7]}
26... Rf7 {[%clk 0:00:44.9]} 27. Qxe6 {[%clk 0:01:12.3]} 27... Qxb4 {[%clk
0:00:45]} 28. Qxd5 {[%clk 0:01:05.5]} 28... Re8 {[%clk 0:00:40.6]} 29. Rb3
{[%clk 0:00:44.5]} 29... Qf4 {[%clk 0:00:39.7]} 30. Re1 {[%clk 0:00:43.9]} 30...
Re7 {[%clk 0:00:34.6]} 31. Rbe3 {[%clk 0:00:37.3]} 31... Kg7 {[%clk 0:00:33.1]}
32. e6 {[%clk 0:00:36.7]} 32... Rf5 {[%clk 0:00:32.3]} 33. Qd8 {[%clk
0:00:33.3]} 33... Qg5 {[%clk 0:00:31.4]} 34. Rd3 {[%clk 0:00:29.8]} 34... Kh6
{[%clk 0:00:13.8]} 35. Rd7 {[%clk 0:00:28.4]} 35... Rxe6 {[%clk 0:00:14.1]} 36.
Qxg5+ {[%clk 0:00:27.4]} 36... Kxg5 {[%clk 0:00:13.3]} 37. Rxe6 {[%clk
0:00:28.3]} 1-0